fUST/lending_fUST_20260122
["ID","MTS","AMOUNT","RATE_DAILY","PERIOD"]
[402987011,1769021178978,-548.71521503,0.00034165,120]
[402987012,1769021179039,-226.15091182,0.00034165,120]
[402987013,1769021179100,-331.81243619,0.00034165,120]
[402987014,1769021179161,-532.96719067,0.00034165,30]
[402987015,1769021179223,-572.30242741,0.00034165,120]
[402987016,1769021179284,-170.16717333,0.00034165,120]
[402987017,1769021179345,-170.47734484,0.00034165,120]
[402987018,1769021179407,-896.47430289,0.00034165,30]
[402987019,1769021179467,-307.72693516,0.00034165,120]
[402987020,1769021179526,-2092.36947423,0.00034165,120]
[402987021,1769021179842,-367.77835138,0.00034165,30]
[402987022,1769021179909,-1239.19520557,0.00034165,120]
[402987023,1769021179972,-3331.93120167,0.00034165,120]
[402987024,1769021180033,-1577.35687247,0.00034165,30]
[402987025,1769021180094,-1210.71127417,0.00034165,120]
[402987026,1769021180155,-1000.0,0.00034165,30]
[402987027,1769021180217,-1845.8224248,0.00034165,120]
[402987028,1769021180281,-360.67674174,0.00034165,120]
[402987029,1769021180346,-370.77148146,0.00034165,120]
[402987030,1769021180409,-3988.71641037,0.00034165,120]
[402987031,1769021180471,-4322.85204892,0.00034165,30]
[402987032,1769021180532,-178.69130357,0.00034165,120]
[402987033,1769021180594,-1036.5187796,0.00034165,60]
[402987034,1769021180657,-513.1175032,0.00034165,120]
[402987035,1769021180719,-512.65668656,0.00034165,120]
[402987036,1769021180782,-478.32065265,0.00034165,120]
[402987037,1769021180849,-1218.03127556,0.00034165,120]
[402987038,1769021180912,-2048.82498393,0.00034165,120]
[402987039,1769021180977,-2951.10410022,0.00034165,120]
[402987040,1769021181041,-163.83798322,0.00034165,120]
[402987041,1769021181104,-1020.48998848,0.00034165,30]
[402987042,1769021181165,-234.80787643,0.00034165,60]
[402987043,1769021181228,-341.04428874,0.00034165,30]
[402987044,1769021181292,-799.0589443,0.00034165,120]
[402987045,1769021181356,-157.83433511,0.00034165,30]
[402987046,1769021181420,-1274.7872429,0.00034165,30]
[402987047,1769021181485,-985.80207539,0.00034165,61]
[402987048,1769021181547,-2714.89311351,0.00034165,31]
[402987049,1769021181609,-1009.57030545,0.00034165,120]
[402987050,1769021181673,-3313.47512108,0.00034165,30]
[402987051,1769021181735,-2944.47194975,0.00034165,30]
[402987052,1769021181802,-100000.0,0.00034165,30]
[402987053,1769021181865,-100000.0,0.00034165,30]
[402987054,1769021181930,-21419.0,0.00034165,30]
[402987055,1769021181996,-2000.0,0.00034165,120]
[402987056,1769021182063,-1000.0,0.00034165,120]
[402987057,1769021182129,-1000.0,0.00034165,120]
[402987058,1769021182194,-1000.0,0.00034165,120]
[402987059,1769021182259,-1000.0,0.00034165,120]
[402987060,1769021182324,-1000.0,0.00034165,120]
[402987061,1769021182389,-1000.0,0.00034165,120]
[402987062,1769021182454,-1000.0,0.00034165,120]
[402987063,1769021182518,-1000.0,0.00034165,120]
[402987064,1769021182585,-1000.0,0.00034165,120]
[402987065,1769021182649,-1144.70922753,0.00034165,120]
[402987066,1769021182713,-160621.71612343,0.00034165,30]
[402987067,1769021182776,-200000.00582314,0.00034165,30]
[402987068,1769021182842,-25888.79032689,0.00034165,30]
[402987069,1769021182906,-32713.56575849,0.00034165,30]
[402987070,1769021182971,-301450.89181877,0.00034165,120]
[402987071,1769021183038,-5855.6171468,0.00034165,120]
[402987072,1769021183108,-788.76289,0.00034165,60]
[402987073,1769021183177,-1624.51277,0.00034165,60]
[402987074,1769021183246,-631.01032,0.00034165,60]
[402987075,1769021183312,-631.01032,0.00034165,60]
[402987076,1769021183381,-631.01032,0.00034165,60]
[402987077,1769021183447,-631.01032,0.00034165,60]
[402987078,1769021183514,-631.01032,0.00034165,60]
[402987079,1769021183580,-20000.0,0.00034165,120]
[402987080,1769021183647,-1312.33653264,0.00034165,120]
[402987081,1769021183712,-1648.81870514,0.00034165,30]
[402987082,1769021183777,-783.81905945,0.00034165,30]
[402987083,1769021183842,-500.0,0.00034165,120]
[402987084,1769021183909,-500.0,0.00034165,120]
[402987085,1769021183978,-500.0,0.00034165,120]
[402987086,1769021184049,-500.0,0.00034165,120]
[402987087,1769021184119,-500.0,0.00034165,120]
[402987088,1769021184184,-500.0,0.00034165,120]
[402987089,1769021184251,-500.0,0.00034165,120]
[402987090,1769021184317,-500.0,0.00034165,120]
[402987091,1769021184385,-500.0,0.00034165,120]
[402987092,1769021184454,-500.0,0.00034165,120]
[402987093,1769021184521,-500.0,0.00034165,120]
[402987094,1769021184587,-500.0,0.00034165,120]
[402987095,1769021184655,-500.0,0.00034165,120]
[402987096,1769021184721,-483.35856237,0.00034165,120]
[402987097,1769021184789,-100000.0,0.00034165,30]
[402987098,1769021184856,-20554.0,0.00034165,30]
[402987099,1769021184921,-200000.0,0.00034165,30]
[402987100,1769021184988,-26110.11418751,0.00034165,30]
[402987101,1769021185063,-500.0,0.00034165,120]
[402987102,1769021185130,-12637.3,0.00034165,120]
[402987103,1769021185195,-6211.0,0.00034165,60]
[402987104,1769021185260,-5000.0,0.00034165,120]
[402987105,1769021185327,-1454.81345975,0.00034165,120]
[402987106,1769021185393,-528.0,0.00034165,120]
[402987107,1769021185457,-218.56394295,0.00034165,120]
[402987108,1769021185520,-2099.0,0.00034165,120]
[402987109,1769021185584,-3335.55757818,0.00034165,120]
[402987110,1769021185647,-1312.48891465,0.00034165,120]
[402987111,1769021185708,-14406.94541396,0.00034165,60]
[402987112,1769021185771,-45513.0,0.00034165,60]
[402987113,1769021185836,-500.0,0.00034165,120]
[402987114,1769021185900,-500.0,0.00034165,120]
[402987115,1769021185965,-500.0,0.00034165,120]
[402987116,1769021186030,-474.46,0.00034165,120]
[402987117,1769021186292,-589.0,0.00034165,120]
[402987118,1769021186356,-5080.0,0.00034165,60]
[402987119,1769021186419,-5000.0,0.00034165,30]
[402987120,1769021186482,-5000.0,0.00034165,90]
[402987121,1769021186545,-5000.0,0.00034165,90]
[402987122,1769021186607,-5000.0,0.00034165,120]
[402987123,1769021186669,-10000.0,0.00034165,30]
[402987124,1769021186732,-199999.999999,0.00034165,30]
[402987125,1769021186797,-10000.0,0.00034165,120]
[402987126,1769021186862,-5071.73250551,0.00034165,31]
[402987127,1769021186925,-20377.0,0.00034165,30]
[402987128,1769021186990,-13642.54609948,0.00034165,120]
[402987129,1769021187053,-60000.0,0.00034165,30]
[402987130,1769021187116,-7079.98601754,0.00034165,30]
[402987131,1769021187179,-32273.34781435,0.00034165,30]
[402987132,1769021187241,-4217.37305246,0.00034165,30]
[402987133,1769021187304,-3183.69334553,0.00034165,30]
[402987134,1769021187369,-16184.31379142,0.00034165,30]
[402987135,1769021187435,-81463.75508931,0.00034165,30]
[402987136,1769021187498,-2861.96911044,0.00034165,31]
[402987137,1769021187560,-11882.8,0.00034165,120]
[402987138,1769021187622,-224.56278521,0.00034165,120]
[402987139,1769021187684,-656.24445733,0.00034165,120]
[402987140,1769021187748,-285.13296609,0.00034165,120]
[402987141,1769021187810,-17082.97,0.00034165,62]
[402987142,1769021187875,-500.0,0.00034165,120]
[402987143,1769021187939,-500.0,0.00034165,120]
[402987144,1769021188004,-492.22,0.00034165,120]
[402987145,1769021188069,-500.0,0.00034165,120]
[402987146,1769021188134,-500.0,0.00034165,120]
[402987147,1769021188197,-500.0,0.00034165,120]
[402987148,1769021188262,-500.0,0.00034165,120]
[402987149,1769021188325,-500.0,0.00034165,120]
[402987150,1769021188388,-500.0,0.00034165,120]
[402987151,1769021188452,-500.0,0.00034165,120]
[402987152,1769021188516,-500.0,0.00034165,120]
[402987153,1769021188588,-500.0,0.00034165,120]
[402987154,1769021188652,-535.90255531,0.00034165,120]
[402987155,1769021188715,-292.73497538,0.00034165,90]
[402987156,1769021188776,-1024.52729743,0.00034165,30]
[402987157,1769021188839,-2000677.77700595,0.00034165,30]
[402987158,1769021188904,-2000000.0,0.00034165,30]
[402987159,1769021188969,-500.0,0.00034165,120]
[402987160,1769021189037,-500.0,0.00034165,120]
[402987161,1769021189102,-500.0,0.00034165,120]
[402987162,1769021189167,-360.69,0.00034165,120]
[402987163,1769021189231,-1548.0,0.00034165,60]
[402987164,1769021189294,-1060.1342077,0.00034165,120]
[402987165,1769021189354,-927.92773871,0.00034165,120]
[402987166,1769021189416,-905.74217411,0.00034165,120]
[402987167,1769021189478,-500.0,0.00034165,120]
[402987168,1769021189539,-500.0,0.00034165,120]
[402987169,1769021189600,-500.0,0.00034165,120]
[402987170,1769021189661,-208.86,0.00034165,120]
[402987171,1769021189720,-186.44418186,0.00034165,30]
[402987172,1769021189786,-227.49555588,0.00034165,120]
[402987173,1769021189850,-7816.0,0.00034165,120]
[402987174,1769021189914,-10446.91285601,0.00034165,120]
[402987175,1769021189976,-1926.63,0.00034165,31]
[402987176,1769021190040,-2599.10395299,0.00034165,120]
[402987177,1769021190101,-1725.85334368,0.00034165,120]
[402987178,1769021190164,-2486.57141799,0.00034165,30]
[402987179,1769021190225,-225.57541727,0.00034165,60]
[402987180,1769021190289,-2273.56493601,0.00034165,120]
[402987181,1769021190350,-163.0,0.00034165,30]
[402987182,1769021190412,-500.0,0.00034165,120]
[402987183,1769021190474,-460.35,0.00034165,120]
[402987184,1769021190533,-10443.77858319,0.00034165,60]
[402987185,1769021190593,-190.83314672,0.00034165,120]
[402987186,1769021190658,-500.0,0.00034165,120]
[402987187,1769021190723,-196.12678538,0.00034165,120]
[402987188,1769021190784,-9999.89349812,0.00034165,120]
[402987189,1769021190846,-2489.43,0.00034165,120]
[402987190,1769021190908,-20112.82932172,0.00034165,120]
[402987191,1769021190970,-14043.26306618,0.00034165,31]
[402987192,1769021191031,-5000.0,0.00034165,60]
[402987193,1769021191093,-5000.0,0.00034165,60]
[402987194,1769021191155,-5000.0,0.00034165,30]
[402987195,1769021191216,-5000.0,0.00034165,30]
[402987196,1769021191278,-141183.6960385,0.00034165,31]
[402987197,1769021191338,-8046.13469832,0.00034165,31]
[402987198,1769021191399,-2160.41107864,0.00034165,120]
[402987199,1769021191460,-3902.513438,0.00034165,30]
[402987200,1769021191521,-72756.95883405,0.00034165,120]
[402987201,1769021191581,-3075.0,0.00034165,30]
[402987202,1769021191641,-7000.0,0.00034165,30]
[402987203,1769021191701,-7000.0,0.00034165,50]
[402987204,1769021191763,-6000.0,0.00034165,90]
[402987205,1769021191824,-510.45,0.00034165,120]
[402987206,1769021191885,-3000.0,0.00034165,90]
[402987207,1769021191947,-2545317.27683726,0.00034165,30]
[402987224,1769021309298,5000.0,0.000154,120]
[402987236,1769021432494,-5000.0,8.968e-05,2]
[402987237,1769021432504,-1200.0,9.058e-05,2]
[402987238,1769021432513,-5000.0,9.059e-05,2]
[402987239,1769021432522,-187.77813221,9.105e-05,2]
[402987240,1769021432532,-300.0,9.15e-05,2]
[402987241,1769021432542,-310.76,9.867e-05,2]
[402987242,1769021432552,-420.0,0.00010065,2]
[402987243,1769021432562,-414.35,0.00010296,2]
[402987244,1769021432575,-155.0,0.00010516,2]
[402987245,1769021432585,-517.94,0.00010725,2]
[402987246,1769021432594,-221.57819601,0.00011105,2]
[402987247,1769021432604,-621.53,0.00011154,2]
[402987248,1769021432612,-725.12,0.00011583,2]
[402987249,1769021432621,-828.7,0.00012012,2]
[402987250,1769021432630,-932.29,0.00012441,2]
[402987252,1769021432639,-17781.9835514,0.00012594,2]
[402987254,1769021432649,-1035.88,0.0001287,2]
[402987256,1769021432658,-255.37825981,0.00013105,2]
[402987258,1769021432668,-500.0,0.00013699,2]
[402987259,1769021432677,-500.0,0.00014013,2]
[402987260,1769021432686,-1000.0,0.00014247,2]
[402987261,1769021432695,-500.0,0.00014345,2]
[402987263,1769021432706,-400.31229044,0.00014707,2]
[402987265,1769021432715,-1500.0,0.00014795,2]
[402987266,1769021432726,-500.0,0.00014829,2]
[402987267,1769021432736,-500.0,0.00014946,2]
[402987268,1769021432745,-289.1783236,0.00015105,2]
[402987269,1769021432755,-500.0,0.0001525,2]
[402987271,1769021432765,-1508.21113008,0.00015342,2]
[402987272,1769021432775,-152.39405799,0.000154,2]
[402987273,1769021432784,-500.0,0.00015661,2]
[402987274,1769021432795,-500.0,0.00015749,30]
[402987275,1769021432809,-500.0,0.00015749,30]
[402987276,1769021432818,-500.0,0.00015749,30]
[402987277,1769021432827,-500.0,0.00015749,30]
[402987278,1769021432837,-801.02708177,0.00015749,30]
[402987279,1769021432848,-500.0,0.00015749,30]
[402987280,1769021432857,-500.0,0.00015749,30]
[402987281,1769021432866,-500.0,0.00015749,30]
[402987282,1769021432875,-500.0,0.00015749,30]
[402987283,1769021432885,-500.0,0.00015749,30]
[402987284,1769021432895,-500.0,0.00015749,30]
[402987285,1769021432904,-530.73354121,0.00015749,30]
[402987286,1769021432914,-720.56212279,0.000159,2]
[402987287,1769021432923,-500.0,0.00015981,2]
[402987288,1769021432932,-500.0,0.00015999,2]
[402987289,1769021432942,-500.0,0.00015999,2]
[402987290,1769021432951,-500.0,0.00015999,2]
[402987291,1769021432961,-500.0,0.00015999,2]
[402987292,1769021432971,-500.0,0.00015999,2]
[402987293,1769021432981,-500.0,0.00015999,2]
[402987294,1769021432991,-500.0,0.00015999,2]
[402987295,1769021433000,-500.0,0.00015999,2]
[402987296,1769021433010,-500.0,0.00015999,2]
[402987297,1769021433020,-500.0,0.00015999,2]
[402987298,1769021433029,-500.0,0.00015999,2]
[402987299,1769021433043,-500.0,0.00015999,2]
[402987300,1769021433053,-500.0,0.00015999,2]
[402987301,1769021433063,-500.0,0.00015999,2]
[402987302,1769021433073,-500.0,0.00015999,2]
[402987303,1769021433082,-500.0,0.00015999,2]
[402987304,1769021433092,-500.0,0.00015999,2]
[402987305,1769021433106,-500.0,0.00015999,2]
[402987306,1769021433115,-500.0,0.00015999,2]
[402987307,1769021433125,-500.0,0.00015999,2]
[402987308,1769021433134,-500.0,0.00015999,2]
[402987309,1769021433144,-500.0,0.00015999,2]
[402987310,1769021433153,-500.0,0.00015999,2]
[402987311,1769021433163,-638.32531294,0.00015999,2]
[402987312,1769021433172,-500.0,0.00015999,2]
[402987313,1769021433182,-500.0,0.00015999,2]
[402987314,1769021433192,-500.0,0.00015999,2]
[402987315,1769021433201,-500.0,0.00015999,2]
[402987316,1769021433210,-589.85212225,0.00015999,2]
[402987317,1769021433219,-500.0,0.00015999,2]
[402987318,1769021433229,-500.0,0.00015999,2]
[402987319,1769021433238,-500.0,0.00015999,2]
[402987320,1769021433247,-500.0,0.00015999,2]
[402987321,1769021433256,-500.0,0.00015999,2]
[402987322,1769021433266,-500.0,0.00015999,2]
[402987323,1769021433456,-500.0,0.00015999,2]
[402987324,1769021433467,-500.0,0.00015999,2]
[402987325,1769021433477,-500.0,0.00015999,2]
[402987326,1769021433486,-500.0,0.00015999,2]
[402987327,1769021433495,-500.0,0.00015999,2]
[402987328,1769021433505,-500.0,0.00015999,2]
[402987329,1769021433514,-500.0,0.00015999,2]
[402987330,1769021433523,-500.0,0.00015999,2]
[402987331,1769021433533,-500.0,0.00016,10]
[402987332,1769021433542,-500.0,0.00016,10]
[402987333,1769021433552,-500.0,0.00016,10]
[402987334,1769021433561,-500.0,0.00016,10]
[402987335,1769021433571,-500.0,0.00016,10]
[402987336,1769021433580,-500.0,0.00016,10]
[402987337,1769021433589,-500.0,0.00016,10]
[402987338,1769021433599,-500.0,0.00016,10]
[402987339,1769021433608,-500.0,0.00016,10]
[402987340,1769021433618,-151.62002564,0.00016,10]
[402987341,1769021433627,-500.0,0.00016,10]
[402987342,1769021433637,-500.0,0.00016,10]
[402987343,1769021433646,-500.0,0.00016,10]
[402987344,1769021433655,-500.0,0.00016,10]
[402987345,1769021433664,-1558.58341142,0.00016027,2]
[402987346,1769021433673,-1368.0,0.00016128,2]
[402987347,1769021433683,-265.7,0.00016216,3]
[402987348,1769021433692,-797.15,0.00016216,3]
[402987349,1769021433701,-23755.87298462,0.00016226,2]
[402987350,1769021433714,-1000.0,0.00016226,2]
[402987351,1769021433725,-1428.97879449,0.00016226,2]
[402987356,1769021438610,-850.7529029,0.00016226,2]
[402987364,1769021438668,-1531.28253876,0.00016226,2]
[402987604,1769021443789,-214.67,9.289e-05,2]
[402987605,1769021443800,-322.0,9.711e-05,2]
[402987606,1769021443821,-429.33,0.00010133,2]
[402987607,1769021443840,-536.67,0.00010555,2]
[402987608,1769021443860,-644.0,0.00010978,2]
[402987609,1769021443881,-751.33,0.000114,2]
[402987610,1769021443901,-2102.0,0.00016064,2]
[402987618,1769021447058,-2898.0,0.00016064,2]
[402987619,1769021447067,-37777.2481441,0.00016226,2]
[402987620,1769021447078,-1695.11665176,0.00016226,2]
[402987621,1769021643553,5000.0,8.876e-05,2]
[402987623,1769021659273,5000.0,8.876e-05,2]
[402987624,1769021667566,3307.22673163,8.876e-05,2]
[402987625,1769021683615,5000.0,8.876e-05,2]
[402987626,1769021706069,5000.0,8.876e-05,2]
[402987627,1769021728520,5000.0,8.876e-05,2]
[402987628,1769021751065,5000.0,8.876e-05,2]
[402987629,1769021773461,5000.0,8.876e-05,2]
[402987630,1769021795840,5000.0,8.876e-05,2]
[402987631,1769021818525,5000.0,8.876e-05,2]
[402987632,1769021842697,5000.0,8.876e-05,2]
[402987633,1769021865393,5000.0,8.876e-05,2]
[402987634,1769021888055,5000.0,8.876e-05,2]
[402987635,1769021910527,5000.0,8.876e-05,2]
[402987636,1769021935001,5000.0,8.876e-05,2]
[402987637,1769021958298,5000.0,8.876e-05,2]
[402987638,1769021981651,5000.0,8.876e-05,2]
[402987639,1769022005060,4298.69655815,8.876e-05,2]
[402987676,1769022637777,-207.76838233,8.959e-05,2]
[402987677,1769022637787,-181.49949234,8.959e-05,2]
[402987678,1769022637796,-546.0,8.959e-05,2]
[402987679,1769022637805,-212.31,9.57e-05,2]
[402987680,1769022637815,-283.08,9.986e-05,2]
[402987681,1769022637824,-353.85,0.00010422,2]
[402987682,1769022637834,-155.0,0.00010496,2]
[402987683,1769022637843,-424.62,0.00010839,2]
[402987684,1769022637854,-214.16940096,0.00010959,2]
[402987685,1769022637863,-495.39,0.00011256,2]
[402987686,1769022637873,-566.16,0.00011672,2]
[402987687,1769022637883,-1857.02511648,0.00011672,2]
[402987688,1769022637892,-1729.1480628,0.00012075,2]
[402987689,1769022637903,-636.94,0.00012089,2]
[402987690,1769022637912,-707.71,0.00012506,2]
[402987691,1769022637921,-246.83930958,0.00012959,2]
[402987692,1769022637930,-500.0,0.00013273,2]
[402987694,1769022637939,-1200.0,0.00013693,2]
[402987696,1769022637948,-300.0,0.00013694,2]
[402987697,1769022637957,-300.0,0.00013694,2]
[402987699,1769022637966,-300.0,0.00013695,2]
[402987701,1769022637976,-500.0,0.00013698,2]
[402987703,1769022637984,-500.0,0.00013698,2]
[402987705,1769022637994,-279.5092182,0.00014959,2]
[402987706,1769022638002,-398.79,0.00014966,2]
[402987707,1769022638011,-151.0,0.0001499,2]
[402987708,1769022638020,-151.0,0.0001499,2]
[402987709,1769022638029,-151.0,0.0001499,2]
[402987710,1769022638039,-155.12363918,0.0001499,2]
[402987711,1769022638048,-2114.56,0.00014999,2]
[402987712,1769022638058,-564.52178477,0.00014999,2]
[402987713,1769022638067,-500.0,0.00014999,2]
[402987715,1769022638077,-500.0,0.00015,10]
[402987717,1769022638086,-500.0,0.00015,10]
[402987719,1769022638096,-500.0,0.00015,10]
[402987721,1769022638111,-500.0,0.00015,10]
[402987723,1769022638120,-500.0,0.00015,10]
[402987725,1769022638130,-500.0,0.00015,10]
[402987727,1769022638140,-707.9715693,0.00015,10]
[402987729,1769022638151,-420.0,0.00015007,2]
[402987731,1769022638162,-1349.0,0.00015062,2]
[402987733,1769022638173,-531.4,0.0001508,3]
[402987735,1769022638183,-500.0,0.00015082,2]
[402987737,1769022638192,-500.0,0.00015082,2]
[402987739,1769022638202,-500.0,0.00015082,2]
[402987741,1769022638212,-500.0,0.00015082,2]
[402987744,1769022638222,-500.0,0.00015082,2]
[402987776,1769022638511,-500.0,0.00015082,2]
[402987778,1769022638521,-500.0,0.00015082,2]
[402987780,1769022638531,-500.0,0.00015082,2]
[402987782,1769022638541,-500.0,0.00015082,2]
[402987784,1769022638551,-500.0,0.00015082,2]
[402987786,1769022638561,-500.0,0.00015082,2]
[402987788,1769022638571,-362.44042176,0.00015082,2]
[402987790,1769022638581,-447.46501582,0.00015082,2]
[402987792,1769022638592,-500.0,0.00015082,2]
[402987794,1769022638602,-500.0,0.00015082,2]
[402987796,1769022638613,-500.0,0.00015082,2]
[402987798,1769022638624,-500.0,0.00015082,2]
[402987800,1769022638633,-500.0,0.00015082,2]
[402987802,1769022638643,-345.82268195,0.00015082,2]
[402987804,1769022638653,-500.0,0.00015082,2]
[402987806,1769022638664,-500.0,0.00015082,2]
[402987808,1769022638674,-500.0,0.00015082,2]
[402987810,1769022638684,-500.0,0.00015082,2]
[402987812,1769022638694,-500.0,0.00015082,2]
[402987814,1769022638704,-500.0,0.00015082,2]
[402987816,1769022638714,-158.48622185,0.00015082,2]
[402987818,1769022638724,-500.0,0.00015082,2]
[402987821,1769022638735,-500.0,0.00015082,2]
[402987823,1769022638745,-500.0,0.00015082,2]
[402987825,1769022638756,-500.0,0.00015082,2]
[402987826,1769022638766,-235.63129188,0.00015089,2]
[402987829,1769022638777,-92682.51717423,0.0001509,2]
[402987832,1769022638798,-14896.74666667,0.0001509,2]
[402987834,1769022638809,-407.89,0.0001509,2]
[402987836,1769022638821,-2052.7410882,0.0001509,2]
[402987935,1769022639976,-919.35239916,0.0001509,2]
[402988235,1769022642952,-539.97291764,0.0001509,2]
[402988247,1769022643058,-3518.79288172,0.0001509,2]
[402988249,1769022643070,-6097.03692679,0.0001509,2]
[402988525,1769022645829,-499696.16637883,0.0001509,2]
[402988532,1769022645882,-4448.16968247,0.0001509,2]
[402989108,1769023838034,-200.93,9.456e-05,2]
[402989109,1769023838044,-552.0,9.456e-05,2]
[402989110,1769023838053,-517.72364802,9.489e-05,2]
[402989111,1769023838063,-578.84615,9.585e-05,2]
[402989112,1769023838072,-175.30069892,9.633e-05,2]
[402989114,1769023838082,-267.91,9.867e-05,2]
[402989116,1769023838091,-5154.66727389,0.0001,2]
[402989118,1769023838101,-1000.99943161,0.0001,2]
[402989120,1769023838111,-334.89,0.00010279,2]
[402989122,1769023838120,-424.95153137,0.00010618,2]
[402989124,1769023838130,-401.87,0.0001069,2]
[402989126,1769023838139,-1683.35730646,0.0001069,2]
[402989128,1769023838150,-468.84,0.00011101,2]
[402989131,1769023838160,-535.82,0.00011512,2]
[402989133,1769023838169,-206.85482472,0.00011633,2]
[402989135,1769023838179,-602.8,0.00011923,2]
[402989137,1769023838188,-669.78,0.00012334,2]
[402989139,1769023838197,-230.41661127,0.00013069,2]
[402989141,1769023838207,-373.60449131,0.00013069,2]
[402989143,1769023838218,-500.0,0.00013069,2]
[402989145,1769023838228,-208.84418304,0.00013069,2]
[402989147,1769023838237,-500.0,0.00013069,2]
[402989149,1769023838247,-557.39358449,0.00013069,2]
[402989151,1769023838257,-426.12255331,0.00013069,2]
[402989153,1769023838267,-184.27624687,0.00013069,2]
[402989155,1769023838277,-500.0,0.00013069,2]
[402989157,1769023838287,-34239.02795907,0.0001307,2]
[402989159,1769023838299,-14227.40200366,0.0001307,2]
[402989161,1769023838311,-10831.24912187,0.0001307,2]
[402989616,1769023843178,-2061.87722489,0.0001307,2]
[402989623,1769023846162,-1512.90000403,0.0001307,2]
[402989630,1769023846320,-369.0962695,0.0001307,2]
[402989631,1769023846332,-344.15242207,0.0001307,2]
[402989685,1769024426544,-164.76,9.339e-05,2]
[402989686,1769024426573,-205.95,9.728e-05,2]
[402989687,1769024426607,-559.0,9.903e-05,2]
[402989688,1769024426635,-424.20512602,9.981e-05,2]
[402989689,1769024426895,-2292.16974796,9.981e-05,2]
[402989692,1769024455879,-1353.91512602,0.00010017,2]
[402989914,1769025038194,-657.061776,9.72e-05,2]
[402989937,1769025038411,-4342.938224,9.72e-05,2]
[402989939,1769025038422,-558.0,9.818e-05,2]
[402989941,1769025038432,-192.80068564,9.972e-05,2]
[402989943,1769025038442,-182.36,0.0001032,2]
[402989945,1769025038452,-155.0,0.00010496,2]
[402989947,1769025038463,-218.83,0.00010732,2]
[402989949,1769025038473,-255.3,0.00011145,2]
[402989951,1769025038483,-291.77,0.00011558,2]
[402989954,1769025038493,-328.24,0.00011971,2]
[402989956,1769025038504,-227.50480906,0.00011972,2]
[402989957,1769025038514,-364.71,0.00012383,2]
[402989960,1769025038525,-545.98682497,0.00012655,2]
[402989961,1769025038535,-648.36432757,0.00012956,2]
[402989963,1769025038545,-300.0,0.00013068,2]
[402989965,1769025038555,-524.62975428,0.00013069,2]
[402989968,1769025038565,-415.11610145,0.00013069,2]
[402989969,1769025038574,-207.12392275,0.00013069,2]
[402989972,1769025038584,-7355.71283997,0.0001307,2]
[402990212,1769025041051,-786.31,0.00012329,2]
[402990214,1769025041062,-62170.09,0.0001307,2]
[402990443,1769025043217,-16213.92276521,0.0001307,2]
[402990445,1769025043228,-7076.86593956,0.0001307,2]
[402990447,1769025043240,-12850.14562991,0.0001307,2]
[402990449,1769025043251,-672.80841133,0.0001307,2]
[402990451,1769025043262,-3377.2436135,0.0001307,2]
[402990464,1769025043377,-256.2,0.0001307,2]
[402990468,1769025043394,-5768.9887876,0.0001307,2]
[402990528,1769025046265,-859.46617756,0.0001307,2]
[402990529,1769025046372,-601.28317409,0.00013069,2]
[402990530,1769025046381,-635.14589775,0.0001307,2]
[402990973,1769026232204,-288.81021131,9.162e-05,2]
[402990974,1769026232215,-352.01140376,9.162e-05,2]
[402991025,1769026238506,-2077.549415,9.162e-05,2]
[402991027,1769026238519,-645.93060856,9.162e-05,2]
[402991029,1769026238528,-5000.0,9.255e-05,2]
[402991031,1769026238538,-551.0,9.348e-05,2]
[402991033,1769026238547,-199.60103484,9.395e-05,2]
[402991035,1769026238556,-300.0,0.00010127,2]
[402991037,1769026238566,-601.28317409,0.00010128,2]
[402991039,1769026238576,-500.0,0.00010128,2]